[Event "Early-Titled-Tuesday-Blitz-January-30-2024"]
[Site "Chess.com"]
[Date "2024.01.30"]
[Round "5"]
[White "dcann0n88"]
[Black "MoreChessJulia"]
[Result "1-0"]
[WhiteElo "2450"]
[BlackElo "2150"]
[TimeControl "180+1"]
[EndTime "8:58:34 PST"]
[Termination "dcann0n88 won by resignation"]

1. d4 {[%clk 0:03:00.9]} 1... Nf6 {[%clk 0:02:59]} 2. c4 {[%clk 0:03:00.8]} 2...
e6 {[%clk 0:02:59.1]} 3. g3 {[%clk 0:02:55.4]} 3... Bb4+ {[%clk 0:02:58.5]} 4.
Bd2 {[%clk 0:02:56.1]} 4... Bxd2+ {[%clk 0:02:57.5]} 5. Qxd2 {[%clk 0:02:56.3]}
5... Ne4 {[%clk 0:02:57.6]} 6. Qc2 {[%clk 0:02:55.9]} 6... d5 {[%clk 0:02:57.8]}
7. Bg2 {[%clk 0:02:54.8]} 7... f5 {[%clk 0:02:51.5]} 8. Nf3 {[%clk 0:02:52.8]}
8... c6 {[%clk 0:02:49.1]} 9. O-O {[%clk 0:02:52.7]} 9... O-O {[%clk 0:02:41.8]}
10. b3 {[%clk 0:02:51.7]} 10... Nd7 {[%clk 0:02:40.2]} 11. Nbd2 {[%clk
0:02:47.3]} 11... Ndf6 {[%clk 0:02:39.6]} 12. Ne5 {[%clk 0:02:46.8]} 12... Nxd2
{[%clk 0:02:37]} 13. Qxd2 {[%clk 0:02:46.5]} 13... Ne4 {[%clk 0:02:36.4]} 14.
Bxe4 {[%clk 0:02:46.7]} 14... fxe4 {[%clk 0:02:35.2]} 15. f4 {[%clk 0:02:40.2]}
15... Bd7 {[%clk 0:02:30.7]} 16. e3 {[%clk 0:02:40.4]} 16... Be8 {[%clk
0:02:30.5]} 17. Qf2 {[%clk 0:02:22]} 17... Bh5 {[%clk 0:02:29.5]} 18. g4 {[%clk
0:02:21.8]} 18... Bg6 {[%clk 0:02:28.1]} 19. h4 {[%clk 0:02:19.2]} 19... Rc8
{[%clk 0:02:23.3]} 20. h5 {[%clk 0:02:18.4]} 20... Be8 {[%clk 0:02:23.2]} 21. g5
{[%clk 0:02:15.6]} 21... Bxh5 {[%clk 0:02:17.1]} 22. Qh2 {[%clk 0:02:15.3]}
22... g6 {[%clk 0:02:14.9]} 23. Qc2 {[%clk 0:02:05.2]} 23... Qb6 {[%clk
0:02:07.5]} 24. Nd7 {[%clk 0:02:01.2]} 24... Qc7 {[%clk 0:02:03.2]} 25. Nxf8
{[%clk 0:02:01.3]} 25... Rxf8 {[%clk 0:02:01.7]} 26. b4 {[%clk 0:01:55.1]} 26...
Qb6 {[%clk 0:01:58.8]} 27. a3 {[%clk 0:01:53.6]} 27... a6 {[%clk 0:01:58]} 28.
Rab1 {[%clk 0:01:53.3]} 28... Bf3 {[%clk 0:01:52.7]} 29. Rfc1 {[%clk 0:01:39.8]}
29... Qc7 {[%clk 0:01:48.8]} 30. b5 {[%clk 0:01:31]} 30... Rf5 {[%clk
0:01:45.5]} 31. Qf2 {[%clk 0:01:16.6]} 31... h6 {[%clk 0:01:42.8]} 32. bxc6
{[%clk 0:01:01.3]} 32... bxc6 {[%clk 0:01:40.5]} 33. cxd5 {[%clk 0:00:59.7]}
33... exd5 {[%clk 0:01:40.1]} 34. Qb2 {[%clk 0:00:44.8]} 34... hxg5 {[%clk
0:01:36.8]} 35. Qb8+ {[%clk 0:00:43.6]} 35... Qxb8 {[%clk 0:01:35.6]} 36. Rxb8+
{[%clk 0:00:44.5]} 36... Kg7 {[%clk 0:01:33.9]} 37. Rb7+ {[%clk 0:00:42.9]}
37... Kh6 {[%clk 0:01:33.6]} 38. Rxc6 {[%clk 0:00:41]} 38... gxf4 {[%clk
0:01:33.4]} 39. exf4 {[%clk 0:00:41.4]} 39... Rxf4 {[%clk 0:01:33.1]} 40. Re7
{[%clk 0:00:33.9]} 40... Rg4+ {[%clk 0:01:27.9]} 41. Kf2 {[%clk 0:00:33.8]}
41... Rg2+ {[%clk 0:01:27.9]} 42. Ke1 {[%clk 0:00:29.8]} 42... Kg5 {[%clk
0:01:27.5]} 43. Re5+ {[%clk 0:00:25.8]} 43... Kf4 {[%clk 0:01:04.2]} 44. Rc3
{[%clk 0:00:09.3]} 44... g5 {[%clk 0:00:53.5]} 45. Re8 {[%clk 0:00:09.6]} 45...
g4 {[%clk 0:00:52.8]} 46. Rf8+ {[%clk 0:00:09.1]} 46... Kg3 {[%clk 0:00:49.7]}
47. Rf5 {[%clk 0:00:02.2]} 47... Rg1+ {[%clk 0:00:46.2]} 48. Kd2 {[%clk
0:00:02.1]} 48... Rd1+ {[%clk 0:00:45.8]} 49. Kc2 {[%clk 0:00:02.5]} 49... Kf2
{[%clk 0:00:45.8]} 50. Rfxf3+ {[%clk 0:00:01.8]} 50... exf3 {[%clk 0:00:43.8]}
51. Kxd1 {[%clk 0:00:02]} 51... g3 {[%clk 0:00:44.4]} 52. Rc2+ {[%clk
0:00:02.7]} 52... Ke3 {[%clk 0:00:43.7]} 53. Rc3+ {[%clk 0:00:02.2]} 53... Kxd4
{[%clk 0:00:42.4]} 54. Rxf3 {[%clk 0:00:02.5]} 54... g2 {[%clk 0:00:40.4]} 55.
Rg3 {[%clk 0:00:03]} 55... Kc4 {[%clk 0:00:39.1]} 56. Rxg2 {[%clk 0:00:03.5]}
56... Kb3 {[%clk 0:00:38.7]} 57. Rd2 {[%clk 0:00:03.5]} 57... Kxa3 {[%clk
0:00:38.3]} 58. Rxd5 {[%clk 0:00:04.2]} 58... Kb4 {[%clk 0:00:36.7]} 59. Kc2
{[%clk 0:00:04.5]} 59... a5 {[%clk 0:00:37.2]} 60. Kb2 {[%clk 0:00:04.7]} 60...
a4 {[%clk 0:00:37.8]} 61. Rd4+ {[%clk 0:00:05]} 61... Kb5 {[%clk 0:00:36.4]} 62.
Rh4 {[%clk 0:00:05.9]} 62... Ka5 {[%clk 0:00:35.7]} 63. Ka3 {[%clk 0:00:06.8]}
63... Kb5 {[%clk 0:00:35.8]} 64. Rh5+ {[%clk 0:00:07.7]} 64... Ka6 {[%clk
0:00:35.3]} 65. Kxa4 {[%clk 0:00:08.6]} 1-0

[Event "Early-Titled-Tuesday-Blitz-January-30-2024"]
[Site "Chess.com"]
[Date "2024.01.30"]
[Round "5"]
[White "UnTucopalaTimba"]
[Black "yuriydovzik"]
[Result "0-1"]
[WhiteElo "1914"]
[BlackElo "2213"]
[TimeControl "180+1"]
[EndTime "8:58:34 PST"]
[Termination "yuriydovzik won on time"]

1. e4 {[%clk 0:03:00.2]} 1... a6 {[%clk 0:02:55.8]} 2. d4 {[%clk 0:02:58]} 2...
b5 {[%clk 0:02:51.9]} 3. a4 {[%clk 0:02:52]} 3... bxa4 {[%clk 0:02:49.4]} 4.
Rxa4 {[%clk 0:02:51]} 4... e6 {[%clk 0:02:33]} 5. Nc3 {[%clk 0:02:48.9]} 5...
Bb7 {[%clk 0:02:27.7]} 6. Nf3 {[%clk 0:02:44.3]} 6... Nf6 {[%clk 0:02:23.6]} 7.
Bg5 {[%clk 0:02:37.5]} 7... Be7 {[%clk 0:02:18]} 8. Bd3 {[%clk 0:02:22.1]} 8...
d5 {[%clk 0:02:14.3]} 9. e5 {[%clk 0:02:16.7]} 9... Nfd7 {[%clk 0:02:06]} 10.
Bxe7 {[%clk 0:02:16]} 10... Qxe7 {[%clk 0:02:05.3]} 11. O-O {[%clk 0:02:11.6]}
11... O-O {[%clk 0:01:59.6]} 12. Ne2 {[%clk 0:01:54]} 12... c5 {[%clk
0:01:57.3]} 13. c3 {[%clk 0:01:52.5]} 13... Nc6 {[%clk 0:01:45.2]} 14. dxc5
{[%clk 0:01:46.5]} 14... Nxc5 {[%clk 0:01:43.8]} 15. Rh4 {[%clk 0:01:44.5]}
15... g6 {[%clk 0:01:36.9]} 16. Ned4 {[%clk 0:01:35.2]} 16... Nxd3 {[%clk
0:01:20]} 17. Nxc6 {[%clk 0:01:21]} 17... Bxc6 {[%clk 0:01:19.6]} 18. Qxd3
{[%clk 0:01:20.7]} 18... Bb5 {[%clk 0:01:19.7]} 19. Qe3 {[%clk 0:01:19]} 19...
Bxf1 {[%clk 0:01:17.7]} 20. Qh6 {[%clk 0:01:18.6]} 20... f5 {[%clk 0:01:15.8]}
21. exf6 {[%clk 0:01:15.5]} 21... Rxf6 {[%clk 0:01:13.5]} 22. Kxf1 {[%clk
0:01:01]} 22... Rxf3 {[%clk 0:01:09.5]} 23. gxf3 {[%clk 0:00:58.1]} 23... Rf8
{[%clk 0:01:05.7]} 24. Kg2 {[%clk 0:00:52]} 24... Qf7 {[%clk 0:01:00.8]} 25. f4
{[%clk 0:00:49.8]} 25... Qg7 {[%clk 0:00:57.3]} 26. Qg5 {[%clk 0:00:43.8]} 26...
Qf6 {[%clk 0:00:51.8]} 27. Rg4 {[%clk 0:00:34.4]} 27... Kg7 {[%clk 0:00:47.2]}
28. h4 {[%clk 0:00:24.8]} 28... h6 {[%clk 0:00:38.5]} 29. Qxf6+ {[%clk
0:00:23.4]} 29... Kxf6 {[%clk 0:00:37.4]} 30. Kf3 {[%clk 0:00:22.6]} 30... Rb8
{[%clk 0:00:36.6]} 31. b4 {[%clk 0:00:21]} 31... a5 {[%clk 0:00:34.6]} 32. bxa5
{[%clk 0:00:20.7]} 32... Ra8 {[%clk 0:00:32.7]} 33. Ke2 {[%clk 0:00:19.1]} 33...
Rxa5 {[%clk 0:00:32]} 34. Kd3 {[%clk 0:00:18.8]} 34... Ra4 {[%clk 0:00:31.9]}
35. f3 {[%clk 0:00:18]} 35... Ra1 {[%clk 0:00:28.2]} 36. Rg2 {[%clk 0:00:16.7]}
36... Rf1 {[%clk 0:00:26.4]} 37. Ke2 {[%clk 0:00:16.3]} 37... Rh1 {[%clk
0:00:26]} 38. Rg4 {[%clk 0:00:16]} 38... Kf5 {[%clk 0:00:20.4]} 39. Ke3 {[%clk
0:00:12.9]} 39... Rc1 {[%clk 0:00:18.3]} 40. Kd2 {[%clk 0:00:12.7]} 40... Rh1
{[%clk 0:00:16]} 41. Ke3 {[%clk 0:00:12.4]} 41... Kf6 {[%clk 0:00:13.4]} 42. Kd4
{[%clk 0:00:08.1]} 42... Rd1+ {[%clk 0:00:11]} 43. Ke3 {[%clk 0:00:07.8]} 43...
Rc1 {[%clk 0:00:10.9]} 44. Kd2 {[%clk 0:00:07.9]} 44... Rh1 {[%clk 0:00:09.9]}
45. Ke3 {[%clk 0:00:07]} 45... h5 {[%clk 0:00:10]} 46. Rg5 {[%clk 0:00:05.4]}
46... Rxh4 {[%clk 0:00:09.2]} 47. Rg2 {[%clk 0:00:03.6]} 47... Rh1 {[%clk
0:00:08.6]} 48. Kd3 {[%clk 0:00:03.3]} 48... Rf1 {[%clk 0:00:08.2]} 49. Ke2
{[%clk 0:00:02.8]} 49... Ra1 {[%clk 0:00:07.2]} 50. Kd3 {[%clk 0:00:02.4]} 50...
Ra4 {[%clk 0:00:07]} 0-1

[Event "Early-Titled-Tuesday-Blitz-January-30-2024"]
[Site "Chess.com"]
[Date "2024.01.30"]
[Round "5"]
[White "Bkmzzzzz"]
[Black "Caroexpert"]
[Result "0-1"]
[WhiteElo "2335"]
[BlackElo "2564"]
[TimeControl "180+1"]
[EndTime "8:58:35 PST"]
[Termination "Caroexpert won by resignation"]

1. e4 {[%clk 0:03:00.9]} 1... e5 {[%clk 0:02:49.5]} 2. Nf3 {[%clk 0:02:52.7]}
2... d6 {[%clk 0:02:46.5]} 3. Nc3 {[%clk 0:02:51]} 3... Nf6 {[%clk 0:02:42]} 4.
d4 {[%clk 0:02:49.5]} 4... exd4 {[%clk 0:02:40]} 5. Nxd4 {[%clk 0:02:50.4]} 5...
Nc6 {[%clk 0:02:38.1]} 6. Bc4 {[%clk 0:02:42]} 6... Be7 {[%clk 0:02:31.7]} 7.
O-O {[%clk 0:02:40.3]} 7... O-O {[%clk 0:02:30.9]} 8. Nf5 {[%clk 0:02:31.5]}
8... Ne5 {[%clk 0:02:14.5]} 9. Bb3 {[%clk 0:02:28.5]} 9... Bxf5 {[%clk
0:02:07.1]} 10. exf5 {[%clk 0:02:29.4]} 10... c6 {[%clk 0:02:06.3]} 11. Bf4
{[%clk 0:02:27.3]} 11... Nfd7 {[%clk 0:01:44.4]} 12. Re1 {[%clk 0:02:21.8]}
12... Qc7 {[%clk 0:01:41.6]} 13. Qh5 {[%clk 0:02:20.1]} 13... d5 {[%clk
0:01:08.4]} 14. Bxd5 {[%clk 0:01:36.3]} 14... cxd5 {[%clk 0:01:00.8]} 15. Nxd5
{[%clk 0:01:34.8]} 15... Qd6 {[%clk 0:00:36.6]} 16. Nxe7+ {[%clk 0:01:31.9]}
16... Qxe7 {[%clk 0:00:36.4]} 17. f6 {[%clk 0:01:31.7]} 17... Qxf6 {[%clk
0:00:35.8]} 18. Bxe5 {[%clk 0:01:30.4]} 18... Qc6 {[%clk 0:00:32.4]} 19. Bc3
{[%clk 0:01:25.4]} 19... Nc5 {[%clk 0:00:24.4]} 20. Re3 {[%clk 0:00:46.3]} 20...
Ne6 {[%clk 0:00:14.7]} 21. Rae1 {[%clk 0:00:35.9]} 21... Rae8 {[%clk 0:00:13.5]}
22. Qg4 {[%clk 0:00:35.7]} 22... f5 {[%clk 0:00:13.3]} 23. Qb4 {[%clk
0:00:23.3]} 23... Rf7 {[%clk 0:00:04.6]} 24. Qb3 {[%clk 0:00:20.5]} 24... Rfe7
{[%clk 0:00:04.7]} 25. Re5 {[%clk 0:00:20.3]} 25... g6 {[%clk 0:00:04.5]} 26. h3
{[%clk 0:00:20.2]} 26... b6 {[%clk 0:00:03.6]} 27. a3 {[%clk 0:00:19.7]} 27...
a5 {[%clk 0:00:03.9]} 28. Qd5 {[%clk 0:00:19.9]} 28... Qxd5 {[%clk 0:00:03.7]}
29. Rxd5 {[%clk 0:00:20.8]} 29... Kf7 {[%clk 0:00:04.5]} 30. Red1 {[%clk
0:00:21.1]} 30... Rb7 {[%clk 0:00:03.7]} 31. Be5 {[%clk 0:00:20.9]} 31... Ree7
{[%clk 0:00:04.1]} 32. f4 {[%clk 0:00:21.2]} 32... Nc5 {[%clk 0:00:03.9]} 33. g3
{[%clk 0:00:20.5]} 33... Ne4 {[%clk 0:00:04]} 34. c3 {[%clk 0:00:20.8]} 34...
Ke6 {[%clk 0:00:03.9]} 35. Kg2 {[%clk 0:00:20.4]} 35... Red7 {[%clk 0:00:03.8]}
36. Rxd7 {[%clk 0:00:19.9]} 36... Rxd7 {[%clk 0:00:03.7]} 37. Rxd7 {[%clk
0:00:20.6]} 37... Kxd7 {[%clk 0:00:04.6]} 38. Kf3 {[%clk 0:00:20.7]} 38... b5
{[%clk 0:00:05]} 39. b3 {[%clk 0:00:20.5]} 39... Kc6 {[%clk 0:00:05]} 40. g4
{[%clk 0:00:20.3]} 40... Kd5 {[%clk 0:00:05]} 41. gxf5 {[%clk 0:00:20.3]} 41...
gxf5 {[%clk 0:00:05.9]} 42. Bc7 {[%clk 0:00:19.7]} 42... a4 {[%clk 0:00:06.2]}
43. bxa4 {[%clk 0:00:17.5]} 43... bxa4 {[%clk 0:00:07.1]} 44. Be5 {[%clk
0:00:16.3]} 44... Kc4 {[%clk 0:00:07.6]} 45. h4 {[%clk 0:00:12.3]} 45... Nxc3
{[%clk 0:00:06.6]} 46. Ke3 {[%clk 0:00:12.9]} 46... Ne4 {[%clk 0:00:06.4]} 47.
Ke2 {[%clk 0:00:13.1]} 47... Kb3 {[%clk 0:00:06.7]} 48. Kd3 {[%clk 0:00:13.3]}
48... Kxa3 {[%clk 0:00:06.8]} 49. Bg7 {[%clk 0:00:10.6]} 49... Kb3 {[%clk
0:00:06.8]} 50. Kd4 {[%clk 0:00:11]} 50... a3 {[%clk 0:00:07.3]} 51. Ke5 {[%clk
0:00:11.6]} 51... a2 {[%clk 0:00:06.2]} 52. Kxf5 {[%clk 0:00:11.8]} 52... Nc3
{[%clk 0:00:06.8]} 0-1

[Event "Early-Titled-Tuesday-Blitz-January-30-2024"]
[Site "Chess.com"]
[Date "2024.01.30"]
[Round "5"]
[White "AlmasRakhmatullaev"]
[Black "Kiborg95"]
[Result "0-1"]
[WhiteElo "2952"]
[BlackElo "2864"]
[TimeControl "180+1"]
[EndTime "8:58:37 PST"]
[Termination "Kiborg95 won by resignation"]

1. e4 {[%clk 0:03:00.9]} 1... d6 {[%clk 0:03:00.2]} 2. d4 {[%clk 0:02:58.4]}
2... Nf6 {[%clk 0:03:00.2]} 3. Nc3 {[%clk 0:02:56.9]} 3... e5 {[%clk 0:03:00.7]}
4. Nf3 {[%clk 0:02:54.3]} 4... Nbd7 {[%clk 0:02:59.6]} 5. Bc4 {[%clk 0:02:53.9]}
5... Be7 {[%clk 0:03:00.1]} 6. O-O {[%clk 0:02:52.2]} 6... O-O {[%clk
0:03:00.2]} 7. h3 {[%clk 0:02:51.6]} 7... c6 {[%clk 0:03:00.5]} 8. a4 {[%clk
0:02:51.6]} 8... h6 {[%clk 0:03:01.1]} 9. Qe2 {[%clk 0:02:50.2]} 9... exd4
{[%clk 0:03:00.8]} 10. Nxd4 {[%clk 0:02:50.4]} 10... Re8 {[%clk 0:03:01.5]} 11.
Re1 {[%clk 0:02:30.7]} 11... Bf8 {[%clk 0:03:01.4]} 12. Qf1 {[%clk 0:02:27.5]}
12... Nc5 {[%clk 0:02:55.6]} 13. f3 {[%clk 0:02:22.2]} 13... d5 {[%clk
0:02:52.8]} 14. exd5 {[%clk 0:02:19.5]} 14... Rxe1 {[%clk 0:02:52.8]} 15. Qxe1
{[%clk 0:02:19.6]} 15... cxd5 {[%clk 0:02:52.8]} 16. Ba2 {[%clk 0:02:18.3]}
16... Bd7 {[%clk 0:02:43.8]} 17. Nxd5 {[%clk 0:01:49.7]} 17... Bxh3 {[%clk
0:02:06.9]} 18. Nxf6+ {[%clk 0:01:40.7]} 18... Qxf6 {[%clk 0:02:07.8]} 19. Be3
{[%clk 0:01:40.2]} 19... Qg6 {[%clk 0:01:58.4]} 20. Qf2 {[%clk 0:01:26.5]} 20...
Re8 {[%clk 0:01:58.4]} 21. Bf4 {[%clk 0:01:24.6]} 21... Nxa4 {[%clk 0:01:21.6]}
22. Bd5 {[%clk 0:01:10]} 22... Bd7 {[%clk 0:00:39.1]} 23. Be4 {[%clk 0:01:00.7]}
23... Qf6 {[%clk 0:00:38.8]} 24. Bg3 {[%clk 0:00:48.6]} 24... Nxb2 {[%clk
0:00:26.6]} 25. c3 {[%clk 0:00:33.8]} 25... Na4 {[%clk 0:00:23.6]} 26. Qc2
{[%clk 0:00:28.1]} 26... Nc5 {[%clk 0:00:20.5]} 27. Rxa7 {[%clk 0:00:09.6]}
27... Nxe4 {[%clk 0:00:19.7]} 28. fxe4 {[%clk 0:00:10.5]} 28... Qb6 {[%clk
0:00:18.4]} 29. Ra1 {[%clk 0:00:08.5]} 29... Qg6 {[%clk 0:00:18.2]} 30. Bh2
{[%clk 0:00:05.4]} 30... Rxe4 {[%clk 0:00:18.2]} 31. Qf2 {[%clk 0:00:04.4]}
31... Rg4 {[%clk 0:00:15.9]} 32. Ra8 {[%clk 0:00:04.5]} 32... Re4 {[%clk
0:00:09.3]} 33. Nf3 {[%clk 0:00:03.7]} 33... Re8 {[%clk 0:00:09.3]} 34. Rxe8
{[%clk 0:00:02.7]} 34... Bxe8 {[%clk 0:00:10.2]} 35. Nd4 {[%clk 0:00:02.9]}
35... Qb6 {[%clk 0:00:09.5]} 36. Bf4 {[%clk 0:00:03]} 36... Qf6 {[%clk
0:00:07.9]} 37. Qg3 {[%clk 0:00:03]} 37... Bd7 {[%clk 0:00:07.3]} 38. Be5 {[%clk
0:00:03.6]} 38... Qg5 {[%clk 0:00:07.1]} 39. Qh2 {[%clk 0:00:02.6]} 39... Qe3+
{[%clk 0:00:06.6]} 40. Kf1 {[%clk 0:00:02.8]} 40... Qxc3 {[%clk 0:00:06.5]} 41.
Ne2 {[%clk 0:00:03.2]} 41... Qd3 {[%clk 0:00:05.5]} 42. Kf2 {[%clk 0:00:03.2]}
42... Bc5+ {[%clk 0:00:04.8]} 43. Ke1 {[%clk 0:00:03.8]} 43... Bb5 {[%clk
0:00:05]} 44. g4 {[%clk 0:00:03.4]} 44... Qxe2+ {[%clk 0:00:04.5]} 45. Qxe2
{[%clk 0:00:04.3]} 45... Bxe2 {[%clk 0:00:05]} 46. Kxe2 {[%clk 0:00:05.2]} 46...
b5 {[%clk 0:00:05.5]} 47. Kd3 {[%clk 0:00:05.7]} 47... f6 {[%clk 0:00:06.2]} 48.
Bf4 {[%clk 0:00:05.8]} 48... Kf7 {[%clk 0:00:06.9]} 49. Ke4 {[%clk 0:00:06.4]}
49... Be7 {[%clk 0:00:07.8]} 50. Kf5 {[%clk 0:00:05.9]} 50... g6+ {[%clk
0:00:08.2]} 51. Ke4 {[%clk 0:00:06.6]} 51... h5 {[%clk 0:00:08.9]} 52. gxh5
{[%clk 0:00:06.8]} 52... gxh5 {[%clk 0:00:09.8]} 53. Kf5 {[%clk 0:00:07.5]}
53... b4 {[%clk 0:00:10.3]} 54. Bd2 {[%clk 0:00:07.6]} 54... b3 {[%clk
0:00:10.8]} 55. Bc3 {[%clk 0:00:08.3]} 55... h4 {[%clk 0:00:10.6]} 56. Kg4
{[%clk 0:00:08.6]} 56... Ke6 {[%clk 0:00:11.3]} 57. Kxh4 {[%clk 0:00:09.2]}
57... Bd6 {[%clk 0:00:12.1]} 58. Kg4 {[%clk 0:00:09]} 58... Be5 {[%clk
0:00:12.7]} 0-1

[Event "Early-Titled-Tuesday-Blitz-January-30-2024"]
[Site "Chess.com"]
[Date "2024.01.30"]
[Round "5"]
[White "AlexPapasimakopoulos"]
[Black "Dinamo3"]
[Result "1/2-1/2"]
[WhiteElo "2763"]
[BlackElo "2501"]
[TimeControl "180+1"]
[EndTime "8:58:41 PST"]
[Termination "Game drawn - insufficient material"]

1. d4 {[%clk 0:03:00.9]} 1... Nf6 {[%clk 0:02:57.5]} 2. c4 {[%clk 0:03:01.3]}
2... g6 {[%clk 0:02:57.6]} 3. Nc3 {[%clk 0:03:01.7]} 3... Bg7 {[%clk 0:02:57.9]}
4. Bg5 {[%clk 0:02:57.3]} 4... O-O {[%clk 0:02:56.8]} 5. e3 {[%clk 0:02:57.6]}
5... d6 {[%clk 0:02:47.6]} 6. Nf3 {[%clk 0:02:57]} 6... h6 {[%clk 0:02:30.5]} 7.
Bh4 {[%clk 0:02:56.6]} 7... g5 {[%clk 0:02:19.6]} 8. Bg3 {[%clk 0:02:55.9]} 8...
Nh5 {[%clk 0:02:19.9]} 9. Be2 {[%clk 0:02:55]} 9... Nxg3 {[%clk 0:02:19.3]} 10.
hxg3 {[%clk 0:02:55.9]} 10... Bf5 {[%clk 0:02:15.1]} 11. Nd2 {[%clk 0:02:55.3]}
11... Bg6 {[%clk 0:02:05.3]} 12. g4 {[%clk 0:02:54.3]} 12... c5 {[%clk
0:02:00.2]} 13. d5 {[%clk 0:02:51.2]} 13... a6 {[%clk 0:01:59.7]} 14. a4 {[%clk
0:02:48.2]} 14... Nd7 {[%clk 0:01:59.6]} 15. Nb3 {[%clk 0:02:46.4]} 15... Qc7
{[%clk 0:01:42.9]} 16. Bd3 {[%clk 0:02:44.8]} 16... Ne5 {[%clk 0:01:38.3]} 17.
Bxg6 {[%clk 0:02:44.1]} 17... Nxg6 {[%clk 0:01:39.2]} 18. Qe2 {[%clk 0:02:29.1]}
18... Rab8 {[%clk 0:01:38.4]} 19. g3 {[%clk 0:02:26.1]} 19... Qd7 {[%clk
0:01:33.7]} 20. O-O {[%clk 0:02:06.1]} 20... Bxc3 {[%clk 0:01:21.1]} 21. bxc3
{[%clk 0:02:05.8]} 21... b5 {[%clk 0:01:21.6]} 22. axb5 {[%clk 0:01:46]} 22...
axb5 {[%clk 0:01:22.5]} 23. cxb5 {[%clk 0:01:45.4]} 23... Qxb5 {[%clk
0:01:22.6]} 24. Qxb5 {[%clk 0:01:42]} 24... Rxb5 {[%clk 0:01:23.5]} 25. Na5
{[%clk 0:01:37.2]} 25... Ne5 {[%clk 0:01:19.9]} 26. Rfb1 {[%clk 0:01:35]} 26...
Rfb8 {[%clk 0:01:13.7]} 27. Rxb5 {[%clk 0:01:34.3]} 27... Rxb5 {[%clk
0:01:14.6]} 28. Ra4 {[%clk 0:01:34.5]} 28... e6 {[%clk 0:01:01.2]} 29. dxe6
{[%clk 0:01:30.5]} 29... fxe6 {[%clk 0:01:02.1]} 30. Nc4 {[%clk 0:01:26.8]}
30... Nxc4 {[%clk 0:00:59.4]} 31. Rxc4 {[%clk 0:01:27.2]} 31... Ra5 {[%clk
0:00:58.4]} 32. Re4 {[%clk 0:01:19.5]} 32... Kf7 {[%clk 0:00:57.1]} 33. f4
{[%clk 0:01:15.7]} 33... Ra3 {[%clk 0:00:46.4]} 34. c4 {[%clk 0:01:14.6]} 34...
Ra2 {[%clk 0:00:43.1]} 35. Kf1 {[%clk 0:01:14.6]} 35... Rc2 {[%clk 0:00:42.7]}
36. Kg1 {[%clk 0:01:14.9]} 36... Kf6 {[%clk 0:00:40.5]} 37. Kf1 {[%clk
0:01:15.1]} 37... Rd2 {[%clk 0:00:30.7]} 38. Kg1 {[%clk 0:01:11.9]} 38... Kf7
{[%clk 0:00:27.2]} 39. Kf1 {[%clk 0:01:11.8]} 39... Rb2 {[%clk 0:00:25.8]} 40.
Kg1 {[%clk 0:01:11.8]} 40... Rc2 {[%clk 0:00:26.3]} 41. Kf1 {[%clk 0:01:12]}
41... Rd2 {[%clk 0:00:27]} 42. Kg1 {[%clk 0:01:12]} 42... d5 {[%clk 0:00:24.7]}
43. cxd5 {[%clk 0:01:11.9]} 43... exd5 {[%clk 0:00:24.4]} 44. Ra4 {[%clk
0:01:09.6]} 44... c4 {[%clk 0:00:24.8]} 45. Ra3 {[%clk 0:01:09.6]} 45... Ke6
{[%clk 0:00:16.8]} 46. Kf1 {[%clk 0:01:09.8]} 46... Kd6 {[%clk 0:00:16.7]} 47.
Ke1 {[%clk 0:01:00.7]} 47... Rg2 {[%clk 0:00:16.3]} 48. Ra6+ {[%clk 0:01:01.3]}
48... Kd7 {[%clk 0:00:15]} 49. Rxh6 {[%clk 0:00:57.7]} 49... Rxg3 {[%clk
0:00:15.4]} 50. fxg5 {[%clk 0:00:52]} 50... Rxg4 {[%clk 0:00:15.5]} 51. Rg6
{[%clk 0:00:50]} 51... Ke7 {[%clk 0:00:11.6]} 52. Kd2 {[%clk 0:00:49.4]} 52...
Rg3 {[%clk 0:00:11.1]} 53. Rc6 {[%clk 0:00:43.2]} 53... Rxg5 {[%clk 0:00:10.3]}
54. e4 {[%clk 0:00:43.8]} 54... Kd7 {[%clk 0:00:07.2]} 55. Rc5 {[%clk
0:00:39.1]} 55... Rg2+ {[%clk 0:00:05.3]} 56. Ke3 {[%clk 0:00:37.5]} 56... Rg3+
{[%clk 0:00:02]} 57. Kd4 {[%clk 0:00:29.7]} 57... Rd3+ {[%clk 0:00:02.2]} 58.
Ke5 {[%clk 0:00:30.3]} 58... dxe4 {[%clk 0:00:02.3]} 59. Kxe4 {[%clk 0:00:26.9]}
59... Rd6 {[%clk 0:00:02.6]} 60. Rxc4 {[%clk 0:00:26.5]} 60... Rc6 {[%clk
0:00:03.3]} 61. Ra4 {[%clk 0:00:26.6]} 61... Rd6 {[%clk 0:00:03.7]} 62. Ke5
{[%clk 0:00:27.1]} 62... Re6+ {[%clk 0:00:04]} 63. Kf5 {[%clk 0:00:27.6]} 63...
Rd6 {[%clk 0:00:04.5]} 64. Ra7+ {[%clk 0:00:27.8]} 64... Kc6 {[%clk 0:00:05.2]}
65. Ke5 {[%clk 0:00:28.4]} 65... Rd5+ {[%clk 0:00:05.5]} 66. Ke4 {[%clk
0:00:29]} 66... Rd6 {[%clk 0:00:06]} 67. Ra6+ {[%clk 0:00:29.2]} 67... Kd7
{[%clk 0:00:06.6]} 68. Rxd6+ {[%clk 0:00:30.1]} 68... Kxd6 {[%clk 0:00:07.1]}
1/2-1/2